Workbook

Sheet паспорт
A1: ПАТ "УКРТРАНСГАЗ" | G1: ПАСПОРТ ФІЗИКО-ХІМІЧНИХ ПОКАЗНИКІВ ПРИРОДНОГО ГАЗУ № 172
A2: Філія "УМГ "КИЇВТРАНСГАЗ" | G2: переданого Сумським ЛВУМГ та прийнятого ПАТ "Сумигаз"
A3: Сумського ЛВУМГ | G3: Маршрут № 172
A4: Вимірювальна хіміко-аналітична лабораторія
A5: Свідоцтво № РУ-0053/17 чинне до 10 травня 2022 р. | K5: по газопроводу "ПРОГРЕС" | V5: за період з | X5: 2017-05-01 | Z5: по | AA5: 2017-05-31
A7: Число місяця | B7: Компонентний склад, % мол. | N7: Фізико-хімічні показники газу обчислені на основі компонентного складу, 101,325 кПа | X7: Температура точки роси за вологою (Р = 3.92 МПа), °С | Y7: Температура точки роси за вуглеводнями, °С | Z7: Вміст сірководню, г/м3 | AA7: Вміст меркаптанової сірки, г/м3 | AB7: Вміст механічних домішок, г/м3
N8: Густина абсолютна, кг/м3,при 20 ºС, | O8: Температура вимірювання/згоряння при 20/25°С
B9: метан, С1 | C9: етан, С2 | D9: пропан, С3 | E9: ізо-бутан, і-С4 | F9: н-бутан, н-С4 | G9: нео-пентан, нео-С5 | H9: ізо-пентан, і-С5 | I9: н-пентан, н-С5 | J9: гексани та вищі, С6+ | K9: кисень, О2 | L9: азот, N2 | M9: діоксид вуглецю, CО2 | O9: Теплота згоряння нижча | R9: Теплота згоряння вища | U9: Число Воббе вище
O10: ккал/м3 | P10: МДж/м3 | Q10: кВт⋅год/м3 | R10: ккал/м3 | S10: МДж/м3 | T10: кВт⋅год/м3 | U10: ккал/м3 | V10: МДж/м3 | W10: кВт⋅год/м3
A11: 1 | O11: 8247.348927 | P11: 34.48 | Q11: 9.591666667 | R11: 9138.244134 | S11: 38.21 | T11: 10.62777778 | AC11: =SUM(B11:M11)+$K$42+$N$42 -> 0
A12: 2 | O12: 8247.348927 | P12: 34.48 | Q12: 9.591666667 | R12: 9138.244134 | S12: 38.21 | T12: 10.62777778 | AC12: 0
A13: 3 | B13: 95.5261 | C13: 2.542 | D13: 0.811 | E13: 0.123 | F13: 0.122 | G13: 0.0017 | H13: 0.0223 | I13: 0.0159 | J13: 0.0125 | K13: 0.0045 | L13: 0.622 | M13: 0.197 | N13: 0.7037 | O13: =P13*238.8459 -> 8237.795091 | P13: 34.49 | Q13: =P13/3.6 -> 9.580555556 | R13: =S13*238.8459 -> 9128.690298 | S13: 38.22 | T13: =S13/3.6 -> 10.61666667 | U13: =V13*238.8459 -> 11942.295 | V13: 50 | W13: =V13/3.6 -> 13.88888889 | X13: -22 | Z13: <0,0001 | AA13: <0,01 | AB13: 0 | AC13: 100 | AD13: =IF(AC13=100,"ОК"," ") -> ОК
A14: 4 | O14: 8237.795091 | P14: 34.49 | Q14: 9.580555556 | R14: 9128.690298 | S14: 38.22 | T14: 10.61666667 | X14: -22.6 | AC14: 0 | AD14: =IF(AC14=100,"ОК"," ") -> 
A15: 5 | O15: 8237.795091 | P15: 34.49 | Q15: 9.580555556 | R15: 9128.690298 | S15: 38.22 | T15: 10.61666667 | X15: -22.6 | AC15: 0
A16: 6 | O16: 8237.795091 | P16: 34.49 | Q16: 9.580555556 | R16: 9128.690298 | S16: 38.22 | T16: 10.61666667 | AC16: 0
A17: 7 | O17: 8237.795091 | P17: 34.49 | Q17: 9.580555556 | R17: 9128.690298 | S17: 38.22 | T17: 10.61666667 | AC17: 0
A18: 8 | O18: 8237.795091 | P18: 34.49 | Q18: 9.580555556 | R18: 9128.690298 | S18: 38.22 | T18: 10.61666667 | AC18: 0
A19: 9 | O19: 8237.795091 | P19: 34.49 | Q19: 9.580555556 | R19: 9128.690298 | S19: 38.22 | T19: 10.61666667 | AC19: 0
A20: 10 | B20: 95.6199 | C20: 2.492 | D20: 0.792 | E20: 0.12 | F20: 0.118 | G20: 0.0016 | H20: 0.0211 | I20: 0.0156 | J20: 0.0133 | K20: 0.0045 | L20: 0.61 | M20: 0.192 | N20: 0.7029 | O20: 8230.629714 | P20: 34.46 | Q20: 9.572222222 | R20: 9121.524921 | S20: 38.19 | T20: 10.60833333 | U20: =V20*238.8459 -> 11942.295 | V20: 50 | W20: =V20/3.6 -> 13.88888889 | X20: -23.1 | Y20: -19.7 | AC20: 100 | AD20: ОК
A21: 11 | O21: 8230.629714 | P21: 34.46 | Q21: 9.572222222 | R21: 9121.524921 | S21: 38.19 | T21: 10.60833333 | X21: -22.1 | Y21: -19 | AC21: 0
A22: 12 | O22: 8230.629714 | P22: 34.46 | Q22: 9.572222222 | R22: 9121.524921 | S22: 38.19 | T22: 10.60833333 | X22: -22.4 | Y22: -19.7 | AC22: 0
A23: 13 | O23: 8230.629714 | P23: 34.46 | Q23: 9.572222222 | R23: 9121.524921 | S23: 38.19 | T23: 10.60833333 | X23: -21.4 | Y23: -18.6 | AC23: 0
A24: 14 | O24: 8230.629714 | P24: 34.46 | Q24: 9.572222222 | R24: 9121.524921 | S24: 38.19 | T24: 10.60833333 | AC24: 0
A25: 15 | B25: 95.368 | C25: 2.653 | D25: 0.844 | E25: 0.13 | F25: 0.128 | G25: 0.0018 | H25: 0.0248 | I25: 0.0179 | J25: 0.0162 | K25: 0.0043 | L25: 0.6 | M25: 0.212 | N25: 0.7052 | O25: 8254.514304 | P25: 34.56 | Q25: 9.6 | R25: 9145.409511 | S25: 38.29 | T25: 10.63611111 | U25: =V25*238.8459 -> 11951.84884 | V25: 50.04 | W25: =V25/3.6 -> 13.9 | X25: -22.5 | Y25: -19.8 | AC25: 100 | AD25: ОК
A26: 16 | O26: 8254.514304 | P26: 34.56 | Q26: 9.6 | R26: 9145.409511 | S26: 38.29 | T26: 10.63611111 | X26: -22.8 | Y26: -19.9 | AC26: 0
A27: 17 | O27: 8254.514304 | P27: 34.56 | Q27: 9.6 | R27: 9145.409511 | S27: 38.29 | T27: 10.63611111 | X27: -23.5 | Y27: -20.3 | AC27: 0
A28: 18 | O28: 8254.514304 | P28: 34.56 | Q28: 9.6 | R28: 9145.409511 | S28: 38.29 | T28: 10.63611111 | X28: -23 | Y28: -20.2 | AC28: 0
A29: 19 | O29: 8254.514304 | P29: 34.56 | Q29: 9.6 | R29: 9145.409511 | S29: 38.29 | T29: 10.63611111 | X29: -23.7 | Y29: -20.2 | AC29: 0
A30: 20 | O30: 8254.514304 | P30: 34.56 | Q30: 9.6 | R30: 9145.409511 | S30: 38.29 | T30: 10.63611111 | AC30: 0 | AD30: =IF(AC30=100,"ОК"," ") -> 
A31: 21 | O31: 8254.514304 | P31: 34.56 | Q31: 9.6 | R31: 9145.409511 | S31: 38.29 | T31: 10.63611111 | AC31: 0
A32: 22 | B32: 95.317 | C32: 2.701 | D32: 0.859 | E32: 0.128 | F32: 0.123 | G32: 0.0015 | H32: 0.0221 | I32: 0.0154 | J32: 0.0107 | K32: 0.0043 | L32: 0.6 | M32: 0.218 | N32: 0.7053 | O32: 8254.514304 | P32: 34.56 | Q32: 9.6 | R32: 9145.409511 | S32: 38.29 | T32: 10.63611111 | U32: =V32*238.8459 -> 11951.84884 | V32: 50.04 | W32: =V32/3.6 -> 13.9 | X32: -23.6 | Y32: -20.1 | AC32: 100 | AD32: ОК
A33: 23 | O33: 8254.514304 | P33: 34.56 | Q33: 9.6 | R33: 9145.409511 | S33: 38.29 | T33: 10.63611111 | X33: -22.7 | Y33: -20.1 | AC33: 0 | AD33: =IF(AC33=100,"ОК"," ") -> 
A34: 24 | O34: 8254.514304 | P34: 34.56 | Q34: 9.6 | R34: 9145.409511 | S34: 38.29 | T34: 10.63611111 | X34: -23.6 | Y34: -20.9 | AC34: 0
A35: 25 | O35: 8254.514304 | P35: 34.56 | Q35: 9.6 | R35: 9145.409511 | S35: 38.29 | T35: 10.63611111 | X35: -23.6 | Y35: -20.7 | AC35: 0
A36: 26 | O36: 8254.514304 | P36: 34.56 | Q36: 9.6 | R36: 9145.409511 | S36: 38.29 | T36: 10.63611111 | X36: -23.2 | Y36: -19.6 | AC36: 0
A37: 27 | O37: 8254.514304 | P37: 34.56 | Q37: 9.6 | R37: 9145.409511 | S37: 38.29 | T37: 10.63611111 | AC37: 0
A38: 28 | O38: 8254.514304 | P38: 34.56 | Q38: 9.6 | R38: 9145.409511 | S38: 38.29 | T38: 10.63611111 | AC38: 0
A39: 29 | B39: 95.5241 | C39: 2.515 | D39: 0.835 | E39: 0.127 | F39: 0.126 | G39: 0.0017 | H39: 0.0226 | I39: 0.016 | J39: 0.012 | K39: 0.0046 | L39: 0.625 | M39: 0.191 | N39: 0.7039 | O39: 8240.18355 | P39: 34.5 | Q39: 9.583333333 | R39: 9131.078757 | S39: 38.23 | T39: 10.61944444 | U39: =V39*238.8459 -> 11944.68346 | V39: 50.01 | W39: =V39/3.6 -> 13.89166667 | X39: -21.5 | Y39: -18.6 | AC39: 100
A40: 30 | O40: =P40*238.8459 -> 8240.18355 | P40: 34.5 | Q40: =P40/3.6 -> 9.583333333 | R40: =S40*238.8459 -> 9131.078757 | S40: 38.23 | T40: =S40/3.6 -> 10.61944444 | X40: -21.7 | Y40: -18.9 | AC40: 0
A41: 31 | O41: 8240.18355 | P41: 34.5 | Q41: 9.583333333 | R41: 9131.078757 | S41: 38.23 | T41: 10.61944444 | X41: -23.2 | Y41: -19.8 | AC41: 0
A42: Рівень одоризації відповідає чинним нормативним документам | O42: 8243.087162 | P42: 34.5097549 | Q42: 9.586710234 | R42: 9133.982369 | S42: 38.2397549 | T42: 10.62282134
H43: Середньозважене значення теплоти згоряння:
B46: Головний інженер Сумського ЛВУМГ Соловйов О.Б. 01.06.2017
C47: Керівник підрозділу підприємства, якому підпорядкована лабораторія | O47: прізвище | R47: підпис | V47: дата
B48: Завідувач ВХАЛ Журавльова В.В. 01.06.2017
C49: Лабораторія, де здійснювалось вимірювання газу | O49: прізвище | R49: підпис | V49: дата
B50: Начальник служби ГВ та М Соловйов А.І. 01.06.2017
C51: Метрологічна служба, яка вимірює обсяги газу | O51: прізвище | R51: підпис | V51: дата

Sheet розрахунок
A2: Додаток до Паспорту фізико-хімічних показників природного газу по маршруту № 172
A4: Число місяця | B4: Теплота згоряння вища, МДж/м3 | C4: Сумська область | E4: Загальний обсяг газу, м3
C5: Обсяг газу переданого за добу, м3
C6: ГРС Білоярськ | D6: ГРС Недригайлів
A7: 1 | B7: =паспорт!S11 -> 38.21 | C7: 2530.0613 | D7: 5423.1235 | E7: =SUM(C7:D7) -> 7953.1848
A8: 2 | B8: =паспорт!S12 -> 38.21 | C8: 2564.1777 | D8: 5540.1328 | E8: 8104.3105
A9: 3 | B9: =паспорт!S13 -> 38.22 | C9: 2457.4587 | D9: 5286.0098 | E9: 7743.4685
A10: 4 | B10: =паспорт!S14 -> 38.22 | C10: 2585.98 | D10: 5655.375 | E10: 8241.355
A11: 5 | B11: =паспорт!S15 -> 38.22 | C11: 2748.6284 | D11: 5837.638 | E11: 8586.2664
A12: 6 | B12: =паспорт!S16 -> 38.22 | C12: 2767.1467 | D12: 5964.0781 | E12: 8731.2248
A13: 7 | B13: =паспорт!S17 -> 38.22 | C13: 2495.4658 | D13: 5594.1265 | E13: 8089.5923
A14: 8 | B14: =паспорт!S18 -> 38.22 | C14: 2856.7625 | D14: 5556.7188 | E14: 8413.4813
A15: 9 | B15: =паспорт!S19 -> 38.22 | C15: 3686.9968 | D15: 8246.7939 | E15: 11933.7907
A16: 10 | B16: =паспорт!S20 -> 38.19 | C16: 5624.0498 | D16: 10960.6553 | E16: 16584.7051
A17: 11 | B17: =паспорт!S21 -> 38.19 | C17: 5535.354 | D17: 12986.9219 | E17: 18522.2759
A18: 12 | B18: =паспорт!S22 -> 38.19 | C18: 5073.9375 | D18: 14519.5449 | E18: 19593.4824
A19: 13 | B19: =паспорт!S23 -> 38.19 | C19: 7446.1514 | D19: 18476.0781 | E19: 25922.2295
A20: 14 | B20: =паспорт!S24 -> 38.19 | C20: 5950.3018 | D20: 13141.9824 | E20: 19092.2842
A21: 15 | B21: =паспорт!S25 -> 38.29 | C21: 3463.6206 | D21: 7440.4009 | E21: 10904.0215
A22: 16 | B22: =паспорт!S26 -> 38.29 | C22: 3077.2219 | D22: 7473.6948 | E22: 10550.9167
A23: 17 | B23: =паспорт!S27 -> 38.29 | C23: 3741.0034 | D23: 9090.4902 | E23: 12831.4936
A24: 18 | B24: =паспорт!S28 -> 38.29 | C24: 4300.894 | D24: 9864.7754 | E24: 14165.6694
A25: 19 | B25: =паспорт!S29 -> 38.29 | C25: 4733.3716 | D25: 10738.9668 | E25: 15472.3384
A26: 20 | B26: =паспорт!S30 -> 38.29 | C26: 3652.8467 | D26: 7923.6943 | E26: 11576.541
A27: 21 | B27: =паспорт!S31 -> 38.29 | C27: 3348.3489 | D27: 7787.5229 | E27: 11135.8718
A28: 22 | B28: =паспорт!S32 -> 38.29 | C28: 2573.5618 | D28: 5776.0332 | E28: 8349.595
A29: 23 | B29: =паспорт!S33 -> 38.29 | C29: 2271.1235 | D29: 4907.333 | E29: 7178.4565
A30: 24 | B30: =паспорт!S34 -> 38.29 | C30: 2349.8162 | D30: 4930.9697 | E30: 7280.7859
A31: 25 | B31: =паспорт!S35 -> 38.29 | C31: 2200.5491 | D31: 4270.873 | E31: 6471.4221
A32: 26 | B32: =паспорт!S36 -> 38.29 | C32: 2087.8804 | D32: 4236.7739 | E32: 6324.6543
A33: 27 | B33: =паспорт!S37 -> 38.29 | C33: 2290.8586 | D33: 4629.2925 | E33: 6920.1511
A34: 28 | B34: =паспорт!S38 -> 38.29 | C34: 2213.4138 | D34: 5088.2769 | E34: =SUM(C34:D34) -> 7301.6907
A35: 29 | B35: =паспорт!S39 -> 38.23 | C35: 1881.7367 | D35: 3926.7883 | E35: =SUM(C35:D35) -> 5808.525
A36: 30 | B36: =паспорт!S40 -> 38.23 | C36: 1884.6062 | D36: 4328.8999 | E36: =SUM(C36:D36) -> 6213.5061
A37: 31 | B37: =паспорт!S41 -> 38.23 | C37: 2827.2474 | D37: 5435.8413 | E37: =SUM(C37:D37) -> 8263.0887
A38: Загальний обсяг газу, м3 | C38: =SUM(C7:C37) -> 103220.5732 | D38: =SUM(D7:D37) -> 231039.806 | E38: =SUM(E7:E37) -> 334260.3792
A39: Енергія, МДж | C39: =SUMPRODUCT(B7:B37,C7:C37) -> 3947177.723 | D39: =SUMPRODUCT(B7:B37,D7:D37) -> 8834857.249 | E39: =SUMPRODUCT(B7:B37,E7:E37) -> 12782034.97
A40: Теплота згоряння (середньозважене значення за місяць), МДж/м³ | C40: =C39/C38 -> 38.24022286 | D40: =D39/D38 -> 38.23954583 | E40: =E39/E38 -> 38.2397549
A41: Теплота згоряння (середньозважене значення за місяць), ккал/м³ | C41: =C40*238.8459 -> 9133.520446 | D41: =D40*238.8459 -> 9133.358739 | E41: =E40*238.8459 -> 9133.408674
A42: Теплота згоряння (середньозважене значення за місяць), кВт*год./м³ | C42: =C40/3.6 -> 10.62228413 | D42: =D40/3.6 -> 10.62209606 | E42: =E40/3.6 -> 10.62215414

Sheet додаток
A2: Додаток до Паспорту фізико-хімічних показників природного газу №172
A4: Область | B4: ГРС, прямий споживач | C4: Cередньозважене значення вищої теплоти згоряння
C5: МДж/м³ | D5: ккал/м³ | E5: кВт*год./м³
A6: Сумська область | B6: ГРС Білоярськ | C6: 38.24022286 | D6: 9133.520446 | E6: 10.62228413
B7: ГРС Недригайлів | C7: 38.23954583 | D7: 9133.358739 | E7: 10.62209606
A8: Середньозважене значення вищої теплоти згоряння по маршруту № 172 | C8: 38.2397549 | D8: 9133.408674 | E8: 10.62215414
A12: Головний інженер Сумського ЛВУМГ | C12: Соловйов О.Б. | E12: 2017-06-01
A13: Підрозділу підприємства, якому підпорядкована лабораторія | C13: прізвище | D13: підпис | E13: дата
A14: Завідувач ВХАЛ | C14: Журавльова В.В. | E14: 2017-06-01
A15: Лабораторія, де здійснювалось вимірювання газу | C15: прізвище | D15: підпис | E15: дата
A16: Начальник служби МтаГВ | C16: Соловйов А.І. | E16: 2017-06-01
A17: Підрозділу, відповідального за облік газу за маршрутом | C17: прізвище | D17: підпис | E17: дата

Sheet variablesList (hidden)
A1: 3 | B1: x:\gaysin | C1: 10, 11, 24, 25, 127, 128, 132, 180, 207, 215 | D1: x:\
B2: x:\Illinci
B3: x:\Talne

Sheet Лист1
A1: Данные по объекту Белоярское (осн.) за 5/17. | H1: Данные по объекту FlowSicK60 Line 1 (осн.) за 5/17. | O1: Данные по объекту ГУВР 011 Line 2 (осн.) за 5/17.
A2: День | B2: V, м3 | C2: dP, кгс/м2 | D2: Pабс, кгс/см2 | E2: T, °C | F2: ABC | H2: День | I2: V, м3 | J2: Vру, м3 | K2: Pабс, кгс/см2 | L2: T, °C | M2: ABC | O2: День | P2: V, м3 | Q2: Vру, м3 | R2: Pабс, кгс/см2 | S2: T, °C | T2: ABC
A3: 1 | B3: 2530.0613 | C3: 68.473 | D3: 2.886 | E3: 12.07 | H3: 1 | I3: 5423.1235 | J3: 1712.8 | K3: 3.147 | L3: 13.097 | M3: A | O3: 1 | P3: 0 | Q3: 0 | R3: 2.502 | S3: 21.901 | T3: A
A4: 2 | B4: 2564.1777 | C4: 69.119 | D4: 2.868 | E4: 9.602 | H4: 2 | I4: 5540.1328 | J4: 1772.8 | K4: 3.083 | L4: 10.526 | M4: A | O4: 2 | P4: 0 | Q4: 0 | R4: 2.466 | S4: 18.566 | T4: A
A5: 3 | B5: 2457.4587 | C5: 63.44 | D5: 2.856 | E5: 8.391 | F5: B | H5: 3 | I5: 5286.0098 | J5: 1721.7 | K5: 3.031 | L5: 10.377 | M5: AB | O5: 3 | P5: 0 | Q5: 0 | R5: 2.457 | S5: 18.245 | T5: AB
A6: 4 | B6: 2585.98 | C6: 69.269 | D6: 2.86 | E6: 7.511 | H6: 4 | I6: 5655.375 | J6: 1811.9001 | K6: 3.085 | L6: 10.375 | M6: A | O6: 4 | P6: 0 | Q6: 0 | R6: 2.447 | S6: 17.797 | T6: A
A7: 5 | B7: 2748.6284 | C7: 75.591 | D7: 2.866 | E7: 5.112 | H7: 5 | I7: 609.8533 | J7: 184.1 | K7: 2.083 | L7: 15.451 | M7: A | O7: 5 | P7: =6137.7847- 910+I7 -> 5837.638 | Q7: 2623.0845 | R7: 3.156 | S7: 7.047 | T7: AB
A8: 6 | B8: 2767.1467 | C8: 80.113 | D8: 2.863 | E8: 9.178 | H8: 6 | I8: 0 | J8: 0 | K8: 1.044 | L8: 20.196 | M8: A | O8: 6 | P8: 5964.0781 | Q8: 1913.9631 | R8: 3.045 | S8: 8.041
A9: 7 | B9: 2495.4658 | C9: 68.457 | D9: 2.86 | E9: 11.346 | H9: 7 | I9: 0.1003 | J9: 0.1 | K9: 1.034 | L9: 21.64 | M9: A | O9: 7 | P9: 5594.1265 | Q9: 1806.5295 | R9: 3.057 | S9: 11.314 | T9: A
A10: 8 | B10: 2856.7625 | C10: 85.294 | D10: 2.865 | E10: 7.884 | H10: 8 | I10: 0 | J10: 0 | K10: 1.013 | L10: 18.509 | M10: A | O10: 8 | P10: 5556.7188 | Q10: 1776.8748 | R10: 3.065 | S10: 9.278
A11: 9 | B11: 3686.9968 | C11: 132.542 | D11: 2.852 | E11: -0.973 | H11: 9 | I11: 0 | J11: 0 | K11: 1.005 | L11: 10.585 | O11: 9 | P11: 8246.7939 | Q11: 2598.9858 | R11: 3.014 | S11: -0.104 | T11: A
A12: 10 | B12: 5624.0498 | C12: 305.132 | D12: 2.864 | E12: -8.395 | F12: B | H12: 10 | I12: 0 | J12: 0 | K12: 1.011 | L12: 8.014 | M12: B | O12: 10 | P12: 10960.6553 | Q12: 3304.3667 | R12: 2.89 | S12: -4.115 | T12: AB
A13: 11 | B13: 5535.354 | C13: 660,395* | D13: 2,934* | E13: -3,994* | F13: ABC | H13: 11 | I13: 0 | J13: 0 | K13: 1.03 | L13: 12.985 | O13: 11 | P13: 12986.9219 | Q13: 3937.6265 | R13: 3.102 | S13: -3.51 | T13: A
A14: 12 | B14: 5073.9375 | C14: 820.681 | D14: 2.621 | E14: -3.683 | F14: A | H14: 12 | I14: 0 | J14: 0 | K14: 1.021 | L14: 9.039 | O14: 12 | P14: 14519.5449 | Q14: 4307.3682 | R14: 3.152 | S14: -5.052 | T14: A
A15: 13 | B15: 7446.1514 | C15: 1440.524 | D15: 2.9 | E15: -8.987 | H15: 13 | I15: 0 | J15: 0 | K15: 1.019 | L15: 8.23 | O15: 13 | P15: 18476.0781 | Q15: 5274.5283 | R15: 3.256 | S15: -6.214 | T15: A
A16: 14 | B16: 5950.3018 | C16: 954.944 | D16: 2.937 | E16: -4.071 | H16: 14 | I16: 0 | J16: 0 | K16: 1.027 | L16: 11.967 | O16: 14 | P16: 13141.9824 | Q16: 3927.0815 | R16: 3.151 | S16: -2.467
A17: 15 | B17: 3463.6206 | C17: 338.141 | D17: 2.871 | E17: 2.93 | F17: B | H17: 15 | I17: 0 | J17: 0 | K17: 1.051 | L17: 16.658 | M17: AB | O17: 15 | P17: 7440.4009 | Q17: 2424.0757 | R17: 2.958 | S17: 3.939 | T17: B
A18: 16 | B18: 3077.2219 | C18: 280.775 | D18: 2.836 | E18: 6.78 | H18: 16 | I18: 0 | J18: 0 | K18: 1.059 | L18: 18.137 | O18: 16 | P18: 7473.6948 | Q18: 2397.3511 | R18: 3.032 | S18: 5.696 | T18: A
A19: 17 | B19: 3741.0034 | C19: 396.592 | D19: 2.819 | E19: 0.554 | H19: 17 | I19: 0 | J19: 0 | K19: 1.032 | L19: 13.148 | O19: 17 | P19: 9090.4902 | Q19: 2755.0688 | R19: 3.147 | S19: 0.534
A20: 18 | B20: 4300.894 | C20: 508.622 | D20: 2.817 | E20: -2.115 | F20: A | H20: 18 | I20: 0 | J20: 0 | K20: 1.027 | L20: 11.148 | O20: 18 | P20: 9864.7754 | Q20: 3000.6772 | R20: 3.106 | S20: -2.195
A21: 19 | B21: 4733.3716 | C21: 621.384 | D21: 2.837 | E21: -1.432 | H21: 19 | I21: 0 | J21: 0 | K21: 1.031 | L21: 12.512 | O21: 19 | P21: 10738.9668 | Q21: 3209.4097 | R21: 3.157 | S21: -1.166
A22: 20 | B22: 3652.8467 | C22: 390.41 | D22: 2.857 | E22: 3.377 | H22: 20 | I22: 0 | J22: 0 | K22: 1.038 | L22: 16.453 | M22: A | O22: 20 | P22: 7923.6943 | Q22: 2501.2319 | R22: 3.05 | S22: 3.952
A23: 21 | B23: 3348.3489 | C23: 338.713 | D23: 2.859 | E23: 7.544 | H23: 21 | I23: 0 | J23: 0 | K23: 1.033 | L23: 17.944 | O23: 21 | P23: 7787.5229 | Q23: 2485.897 | R23: 3.038 | S23: 6.557
A24: 22 | B24: 2573.5618 | C24: 195.097 | D24: 2.841 | E24: 6.008 | F24: B | H24: 22 | I24: 0 | J24: 0 | K24: 1.034 | L24: 16.969 | M24: AB | O24: 22 | P24: 5776.0332 | Q24: 1869.8313 | R24: 3.011 | S24: 6.663 | T24: B
A25: 23 | B25: 2271.1235 | C25: 159.336 | D25: 2.822 | E25: 11.224 | H25: 23 | I25: 0 | J25: 0 | K25: 1.065 | L25: 21.734 | M25: A | O25: 23 | P25: 4907.333 | Q25: 1598.7996 | R25: 3.038 | S25: 11.563
A26: 24 | B26: 2349.8162 | C26: 183.216 | D26: 2.812 | E26: 11.272 | H26: 24 | I26: 0 | J26: 0 | K26: 1.051 | L26: 21.137 | M26: A | O26: 24 | P26: 4930.9697 | Q26: 1643.3713 | R26: 2.982 | S26: 11.147
A27: 25 | B27: 2200.5491 | C27: 158.269 | D27: 2.835 | E27: 13.043 | F27: A | H27: 25 | I27: 0 | J27: 0 | K27: 1.05 | L27: 22.97 | M27: A | O27: 25 | P27: 4270.873 | Q27: 1418.575 | R27: 2.994 | S27: 13.6
A28: 26 | B28: 2087.8804 | C28: 141.777 | D28: 2.847 | E28: 12.595 | H28: 26 | I28: 0 | J28: 0 | K28: 1.038 | L28: 20.93 | M28: A | O28: 26 | P28: 4236.7739 | Q28: 1414.655 | R28: 2.986 | S28: 12.855
A29: 27 | B29: 2290.8586 | C29: 167.51 | D29: 2.857 | E29: 10.421 | H29: 27 | I29: 0 | J29: 0 | K29: 1.04 | L29: 20.519 | M29: A | O29: 27 | P29: 4629.2925 | Q29: 1499.2512 | R29: 3.029 | S29: 11.413 | T29: A
A30: 28 | B30: 2213.4138 | C30: 158.67 | D30: 2.856 | E30: 11.856 | H30: 28 | I30: 0 | J30: 0 | K30: 1.049 | L30: 20.489 | M30: A | O30: 28 | P30: 5088.2769 | Q30: 1691.8772 | R30: 2.987 | S30: 11.621
A31: 29 | B31: 1881.7367 | C31: 122.631 | D31: 2.867 | E31: 16.752 | F31: AB | H31: 29 | I31: 0 | J31: 0 | K31: 1.064 | L31: 25.322 | M31: B | O31: 29 | P31: 3926.7883 | Q31: 1309.7004 | R31: 3.024 | S31: 17.313 | T31: B
A32: 30 | B32: 1884.6062 | C32: 119.061 | D32: 2.865 | E32: 15.19 | H32: 30 | I32: 0.1007 | J32: 0.1 | K32: 1.052 | L32: 22.711 | M32: A | O32: 30 | P32: 4328.8999 | Q32: 1464.843 | R32: 2.979 | S32: 14.23
A33: 31 | B33: =1849.2474+978 -> 2827.2474 | C33: 115.887 | D33: 2.842 | E33: 18.334 | H33: 31 | I33: 0 | J33: 0 | K33: 1.056 | L33: 26.11 | M33: A | O33: 31 | P33: =3643.8413+1792 -> 5435.8413 | Q33: 1215.0647 | R33: 3.053 | S33: 18.901
A34: Итого | B34: 102242,5732* | C34: 299,680* | D34: 2,851* | E34: 5,978* | F34: ABC | H34: Итого | I34: 22514.6955 | J34: 7203.5002 | K34: 1.336 | L34: 16.319 | M34: AB | O34: Итого | P34: 207643.3118 | Q34: 65370.0891 | R34: 3.054 | S34: 5.957 | T34: AB
